bitfinex-derivatives/quotes_BTCF0:USTF0_20250424
["timestamp","ask_amount","ask_price","bid_price","bid_amount"]
[1745508554303,0.2369502,93210.0,93209.0,0.4857514]
[1745508558189,0.2369502,93210.0,93209.0,0.172]
[1745508559105,0.2369502,93210.0,93209.0,0.1072514]
[1745508559606,0.053627,93207.0,93204.0,0.1072563]
[1745508559796,0.2268548,93206.0,93205.0,0.107256]
[1745508559997,0.2268548,93206.0,93205.0,0.207256]
[1745508562401,0.2328548,93206.0,93205.0,0.207256]
[1745508563402,0.0686,93206.0,93205.0,0.207256]
[1745508563604,0.1758548,93206.0,93205.0,0.267256]
[1745508563799,0.1758548,93206.0,93205.0,0.325556]
[1745508565705,0.1758548,93206.0,93205.0,0.265556]
[1745508569802,0.1758548,93206.0,93205.0,0.1583]
[1745508570003,0.1758548,93206.0,93205.0,0.265556]
[1745508571514,0.1132548,93206.0,93205.0,0.265556]
[1745508572312,0.2378548,93206.0,93205.0,0.265556]
[1745508575925,0.2378548,93206.0,93205.0,0.1583]
[1745508576216,0.2378548,93206.0,93205.0,0.1]
[1745508580313,0.7378548,93206.0,93205.0,0.1]
[1745508585323,0.1072571,93204.0,93203.0,0.0609]
[1745508585524,0.1072571,93204.0,93203.0,0.1609]
[1745508585712,0.1072571,93204.0,93203.0,0.1681583]
[1745508585920,0.1072571,93204.0,93203.0,0.0609]
[1745508586818,0.1102571,93204.0,93203.0,0.0609]
[1745508587521,0.1112571,93204.0,93203.0,0.0609]
[1745508591516,0.1072641,93198.0,93197.0,0.10267761]
[1745508591719,0.1072698,93193.0,93190.0,0.21827711]
[1745508591917,0.1816698,93193.0,93190.0,0.21827711]
[1745508592116,0.2889738,93193.0,93190.0,0.21827711]
[1745508592320,0.7889738,93193.0,93190.0,0.21827711]
[1745508592621,0.9131738,93193.0,93190.0,0.21827711]
[1745508593320,0.9141738,93193.0,93190.0,0.21827711]
[1745508593522,0.9151738,93193.0,93192.0,0.00115606]
[1745508595222,1.0871738,93193.0,93192.0,0.00115606]
[1745508596312,0.9151738,93193.0,93192.0,0.00115606]
[1745508597921,0.8078698,93193.0,93192.0,0.00115606]
[1745508598322,0.8078298,93193.0,93192.0,0.00115606]
[1745508600121,0.7443298,93193.0,93192.0,0.09115606]
[1745508600325,0.6092698,93193.0,93192.0,0.268271]
[1745508600720,0.6092698,93193.0,93192.0,0.386671]
[1745508600917,0.6092698,93193.0,93192.0,0.2794]
[1745508601220,0.1092698,93193.0,93192.0,0.2914]
[1745508601420,0.1092698,93193.0,93192.0,0.2314]
[1745508601822,0.1737698,93193.0,93192.0,0.2314]
[1745508602018,0.6737698,93193.0,93192.0,0.2314]
[1745508602226,0.6737698,93193.0,93192.0,0.0594]
[1745508602626,0.6736154,93193.0,93192.0,0.0594]
[1745508603430,0.6736154,93193.0,93192.0,0.1694]
[1745508603630,0.6736154,93193.0,93192.0,0.2328]
[1745508604028,0.6736154,93193.0,93192.0,0.1228]
[1745508604721,0.6091154,93193.0,93192.0,0.1228]
[1745508604927,0.6091154,93193.0,93192.0,0.2528]
[1745508605725,0.6091154,93193.0,93192.0,0.1228]
[1745508605933,0.6714154,93193.0,93192.0,0.1228]
[1745508606434,0.6091154,93193.0,93192.0,0.1228]
[1745508606625,0.6091154,93193.0,93192.0,0.0594]
[1745508606825,0.6733154,93193.0,93192.0,0.0594]
[1745508607024,0.7951154,93193.0,93192.0,0.001]
[1745508610442,0.1072859,93179.0,93178.0,0.0606]
[1745508610644,0.4680859,93179.0,93178.0,0.2737]
[1745508611141,0.4680859,93179.0,93178.0,0.4457]
[1745508611340,0.5931859,93179.0,93178.0,0.4457]
[1745508611541,0.2333859,93179.0,93178.0,0.4467]
[1745508611745,0.5941859,93179.0,93178.0,0.4467]
[1745508612250,1.0305859,93179.0,93178.0,0.4457]
[1745508612451,1.0325859,93179.0,93178.0,0.4467]
[1745508613048,0.9700859,93179.0,93178.0,0.5539871]
[1745508614049,0.4700859,93179.0,93178.0,0.5539871]
[1745508614950,0.4700859,93179.0,93178.0,0.4467]
[1745508617239,0.1092859,93179.0,93178.0,0.5539871]
[1745508618646,0.1092859,93179.0,93178.0,0.4467]
[1745508619350,0.4700859,93179.0,93178.0,0.4467]
[1745508620149,0.1092859,93179.0,93178.0,0.4467]
[1745508620351,0.5307859,93179.0,93178.0,0.4467]
[1745508621145,0.5916859,93179.0,93178.0,0.4467]
[1745508621350,0.5916859,93179.0,93178.0,0.001]
[1745508621351,1.0916859,93179.0,93178.0,0.001]
[1745508621544,1.0916859,93179.0,93178.0,0.111]
[1745508622445,1.1990059,93179.0,93178.0,0.0316831]
[1745508622947,1.1990059,93179.0,93176.0,0.00107323]
[1745508622948,0.1072882,93177.0,93176.0,0.00107323]
[1745508623935,0.6072882,93177.0,93176.0,0.00107323]
[1745508624142,0.6082882,93177.0,93176.0,0.00107323]
[1745508624942,0.6092882,93177.0,93176.0,0.00107323]
[1745508628243,0.7166122,93177.0,93176.0,3e-08]
[1745508634139,0.6092882,93177.0,93176.0,3e-08]
[1745508645054,0.6092882,93177.0,93176.0,0.17200003]
[1745508645255,0.6092882,93177.0,93176.0,0.30200003]
[1745508645460,0.6092882,93177.0,93176.0,0.17200003]
[1745508645862,0.1092882,93177.0,93176.0,0.17200003]
[1745508646651,0.1092882,93177.0,93176.0,0.67928943]
[1745508646850,0.1092882,93177.0,93176.0,0.42928943]
[1745508647555,0.1092882,93177.0,93176.0,0.55388943]
[1745508648356,0.1815613,93183.0,93182.0,0.1072825]
[1745508648563,0.1815613,93183.0,93182.0,0.2572825]
[1745508648764,0.1815613,93183.0,93182.0,0.6145985]
[1745508649360,0.1815613,93183.0,93182.0,0.3645985]
[1745508649662,0.1815613,93183.0,93182.0,0.1689825]
[1745508649964,0.1845613,93183.0,93182.0,0.1222]
[1745508650161,0.1855613,93183.0,93182.0,0.2942]
[1745508651361,0.6855613,93183.0,93182.0,0.2942]
[1745508652776,0.6855613,93183.0,93182.0,0.4442]
[1745508654272,0.6855613,93183.0,93182.0,0.2942]
[1745508654564,0.6855613,93183.0,93182.0,0.4242]
[1745508655763,0.6855613,93183.0,93182.0,0.2942]
[1745508657368,0.6855613,93183.0,93182.0,0.2325]
[1745508657570,0.7439613,93183.0,93182.0,0.2325]
[1745508657771,0.7439613,93183.0,93182.0,0.2958]
[1745508661459,0.7439613,93183.0,93182.0,0.2325]
[1745508661663,0.1072882,93177.0,93176.0,3e-08]
[1745508661860,0.4680882,93177.0,93176.0,3e-08]
[1745508662072,0.47901755,93177.0,93176.0,3e-08]
[1745508662566,0.60021755,93177.0,93176.0,3e-08]
[1745508662770,1.10121755,93177.0,93176.0,3e-08]
[1745508662968,1.10221755,93177.0,93176.0,3e-08]
[1745508663870,1.0912882,93177.0,93176.0,3e-08]
[1745508665771,1.1986122,93177.0,93176.0,3e-08]
[1745508667869,0.1073078,93160.0,93159.0,4e-08]
[1745508668077,1.0751478,93160.0,93159.0,4e-08]
[1745508668371,1.1824918,93160.0,93159.0,4e-08]
[1745508668567,1.6824918,93160.0,93159.0,4e-08]
[1745508669075,1.8059918,93160.0,93159.0,4e-08]
[1745508669271,1.6349918,93160.0,93159.0,4e-08]
[1745508669780,1.6379918,93160.0,93159.0,4e-08]
[1745508670076,1.6409918,93160.0,93159.0,4e-08]
[1745508671061,2.00556684,93160.0,93159.0,4e-08]
[1745508675777,0.1073228,93147.0,93146.0,2e-08]
[1745508675982,0.4681228,93147.0,93146.0,2e-08]
[1745508676682,1.0906228,93147.0,93146.0,2e-08]
[1745508676976,1.0926228,93147.0,93146.0,2e-08]
[1745508678682,1.0916228,93147.0,93146.0,2e-08]
[1745508678881,1.0956228,93147.0,93146.0,2e-08]
[1745508679778,1.20297881,93147.0,93146.0,2e-08]
[1745508679973,1.56755385,93147.0,93146.0,2e-08]
[1745508681174,1.57542195,93147.0,93146.0,2e-08]
[1745508682470,0.97689784,93147.0,93146.0,0.09000002]
[1745508682677,0.00084,93151.0,93147.0,0.0536612]
[1745508682978,0.0536578,93154.0,93151.0,0.1609736]
[1745508683178,0.1073159,93153.0,93152.0,0.0616]
[1745508683378,0.1073159,93153.0,93152.0,0.2729]
[1745508683578,0.1073159,93153.0,93152.0,0.5229]
[1745508684385,0.1073159,93153.0,93152.0,0.6949]
[1745508685481,0.1073159,93153.0,93152.0,0.2949]
[1745508685988,0.1103159,93153.0,93152.0,0.4249]
[1745508686187,0.6133159,93153.0,93152.0,0.533217]
[1745508686583,0.6133159,93153.0,93152.0,0.4259]
[1745508686794,0.6133159,93153.0,93152.0,0.533217]
[1745508686993,0.6133159,93153.0,93152.0,0.890569]
[1745508687291,0.6133159,93153.0,93152.0,0.640569]
[1745508687482,0.1133159,93153.0,93152.0,0.640569]
[1745508688288,0.1133159,93153.0,93152.0,0.533252]
[1745508689289,0.1133159,93153.0,93152.0,0.4259]
[1745508691190,0.1133159,93153.0,93152.0,0.533217]
[1745508692990,0.00814553,93170.0,93152.0,1.164052]
[1745508693191,0.1072977,93170.0,93169.0,0.1072974]
[1745508693390,0.1072977,93170.0,93169.0,0.2572974]
[1745508693899,0.1072977,93170.0,93169.0,0.3797974]
[1745508694086,0.1142977,93170.0,93169.0,0.5517974]
[1745508694788,0.1072977,93170.0,93169.0,0.5517974]
[1745508694994,0.1192977,93170.0,93169.0,0.6591294]
[1745508695394,0.1122977,93170.0,93169.0,0.6591294]
[1745508695594,0.1172977,93170.0,93169.0,0.6601294]
[1745508697000,0.36457504,93191.0,93169.0,0.812832]
[1745508697301,0.1072744,93190.0,93189.0,0.1072743]
[1745508697493,0.053635,93193.0,93190.0,0.0536361]
[1745508697693,0.1609071,93193.0,93192.0,0.107271]
[1745508697996,0.0536326,93197.0,93192.0,0.16]
[1745508698192,0.36977504,93208.0,93200.0,0.0536307]
[1745508698396,0.0052,93208.0,93206.0,0.1072548]
[1745508698589,0.0052,93208.0,93206.0,0.3545428]
[1745508698989,0.1083537,93207.0,93206.0,0.3545428]
[1745508699198,0.0011,93207.0,93206.0,0.5265428]
[1745508699395,0.1083537,93207.0,93206.0,0.5265428]
[1745508699796,0.1143537,93207.0,93206.0,0.5275428]
[1745508700492,0.1193537,93207.0,93206.0,0.5285428]
[1745508702193,0.1193537,93207.0,93206.0,0.4212548]
[1745508702905,0.1193537,93207.0,93206.0,0.314]
[1745508703200,0.1193537,93207.0,93206.0,0.254]
[1745508703404,0.1790537,93207.0,93206.0,0.254]
[1745508705201,0.5718,93207.0,93187.0,0.06]
[1745508705404,0.1072767,93187.0,93178.0,0.07416]
[1745508705600,0.1072767,93187.0,93186.0,0.5680779]
[1745508706207,0.1072767,93187.0,93186.0,0.7400779]
[1745508707301,0.0536371,93190.0,93187.0,0.0536378]
[1745508707502,0.1609127,93190.0,93189.0,0.1072744]
[1745508707705,0.1609127,93190.0,93189.0,0.2472744]
[1745508708207,0.1609127,93190.0,93189.0,0.4192744]
[1745508708698,0.1619127,93190.0,93189.0,0.4192744]
[1745508709502,0.1629127,93190.0,93189.0,0.2792744]
[1745508709701,0.1629127,93190.0,93189.0,0.4737744]
[1745508712108,0.1072657,93197.0,93196.0,0.1072652]
[1745508712311,0.0536304,93201.0,93200.0,0.1072618]
[1745508712502,0.0536304,93201.0,93200.0,0.2672618]
[1745508712915,0.1125304,93201.0,93200.0,0.1072618]
[1745508713103,0.1125304,93201.0,93200.0,0.312]
[1745508713299,0.1722304,93201.0,93200.0,0.312]
[1745508713904,0.1722304,93201.0,93200.0,0.172]
[1745508714214,0.1752304,93201.0,93200.0,0.173]
[1745508714408,0.6752304,93201.0,93200.0,0.173]
[1745508715215,0.6782304,93201.0,93200.0,0.174]
[1745508716313,0.6782304,93201.0,93200.0,0.2812618]
[1745508716714,0.6782304,93201.0,93200.0,0.174]
[1745508718815,0.6782304,93201.0,93200.0,0.2812618]
[1745508719017,0.1782304,93201.0,93200.0,0.3912618]
[1745508720214,0.0649,93201.0,93200.0,0.3912618]
[1745508720511,0.006,93201.0,93200.0,0.3912618]
[1745508721016,0.0011,93207.0,93206.0,0.1072548]
[1745508721219,0.0011,93207.0,93206.0,0.2472548]
[1745508721407,0.10886009,93211.0,93210.0,0.1072502]
[1745508721614,0.10886009,93211.0,93210.0,0.6280502]
[1745508721915,0.10886009,93211.0,93210.0,0.16]
[1745508722114,0.10886009,93211.0,93210.0,0.332]
[1745508722419,0.17076009,93211.0,93210.0,0.332]
[1745508722605,0.29516009,93211.0,93210.0,0.332]
[1745508722810,0.30116009,93211.0,93210.0,0.333]
[1745508723013,0.66196009,93211.0,93210.0,0.333]
[1745508723209,0.73608009,93211.0,93210.0,0.193]
[1745508723409,0.74108009,93211.0,93210.0,0.194]
[1745508724216,0.74108009,93211.0,93210.0,0.022]
[1745508724722,1.24108009,93211.0,93210.0,0.022]
[1745508727721,0.107271,93192.0,93191.0,0.04]
[1745508728020,0.1072721,93191.0,93190.0,0.1662733]
[1745508728221,0.1696721,93191.0,93190.0,0.3162733]
[1745508728713,0.0624,93191.0,93190.0,0.3162733]
[1745508729118,0.1696721,93191.0,93190.0,0.4882733]
[1745508730019,0.1696721,93191.0,93190.0,0.4892733]
[1745508730820,0.1696721,93191.0,93190.0,0.4902733]
[1745508731909,0.1072721,93191.0,93190.0,0.4902733]
[1745508732811,0.1649721,93191.0,93190.0,0.313]
[1745508734016,0.5257721,93191.0,93190.0,0.174]
[1745508734324,0.1072744,93189.0,93188.0,0.16350881]
[1745508735018,0.1683744,93189.0,93188.0,0.16350881]
[1745508735421,0.1713744,93189.0,93188.0,0.16350881]
[1745508735725,0.1753744,93189.0,93188.0,0.16450881]
[1745508736326,0.0536379,93188.0,93176.0,0.00107323]
[1745508736512,0.4680882,93177.0,93176.0,0.00107323]
[1745508736823,0.107294,93172.0,93171.0,0.27171622]
[1745508737015,0.107294,93172.0,93045.0,0.00186857]
[1745508737016,0.1073044,93163.0,93150.0,0.00946525]
[1745508737212,0.4681044,93163.0,93162.0,0.41605946]
[1745508737513,0.053658,93153.0,93143.0,0.15]
[1745508737719,0.4681228,93147.0,93146.0,0.07000002]
[1745508738116,0.25162,93152.0,93146.0,0.07000002]
[1745508738316,0.0604,93148.0,93147.0,0.1609837]
[1745508738517,0.1073216,93148.0,93147.0,0.4433814]
[1745508738714,0.1073216,93148.0,93147.0,0.3360609]
[1745508739217,0.1073216,93148.0,93147.0,0.5080609]
[1745508739819,0.1083216,93148.0,93147.0,0.5080609]
[1745508740129,0.001,93148.0,93147.0,0.5080609]
[1745508740519,0.1083216,93148.0,93147.0,0.5080609]
[1745508740719,0.1083216,93148.0,93147.0,0.5100609]
[1745508742525,0.001,93148.0,93147.0,0.5100609]
[1745508742932,0.1073044,93163.0,93162.0,0.1073055]
[1745508743133,0.053651,93165.0,93164.0,0.1073032]
[1745508743330,0.07412,93169.0,93168.0,0.1072986]
[1745508743528,0.1814174,93169.0,93168.0,0.2672986]
[1745508743920,0.1814174,93169.0,93168.0,0.1601]
[1745508744126,0.107309,93159.0,93158.0,0.4681092]
[1745508744325,0.107309,93159.0,93158.0,0.5008]
[1745508744521,0.107309,93159.0,93158.0,0.6081101]
[1745508745230,0.003,93165.0,93164.0,0.1073032]
[1745508745427,0.107302,93165.0,93164.0,0.2673032]
[1745508746125,0.107302,93165.0,93164.0,0.5563032]
[1745508747628,0.107302,93165.0,93164.0,0.5583032]
[1745508747824,0.108302,93165.0,93164.0,0.5613032]
[1745508748041,0.001,93165.0,93164.0,0.5613032]
[1745508748235,0.07412,93169.0,93167.0,0.1072986]
[1745508748430,0.07412,93169.0,93168.0,0.1793]
[1745508748735,0.1814174,93169.0,93168.0,0.1215]
[1745508748939,0.1814174,93169.0,93168.0,0.2215]
[1745508749132,0.1814174,93169.0,93168.0,0.3935]
[1745508749333,0.1814174,93169.0,93168.0,0.5007986]
[1745508749533,0.1824174,93169.0,93168.0,0.5027986]
[1745508750541,0.1824174,93169.0,93168.0,0.2341]
[1745508750743,0.2417174,93169.0,93168.0,0.2341]
[1745508751127,0.2417174,93169.0,93168.0,0.2361]
[1745508751531,0.2417174,93169.0,93168.0,0.176]
[1745508751727,0.8023174,93169.0,93168.0,0.176]
[1745508752132,0.8023174,93169.0,93168.0,0.004]
[1745508752337,0.8013174,93169.0,93168.0,0.003]
[1745508752927,0.8013174,93169.0,93168.0,0.002]
[1745508753726,0.8013174,93169.0,93168.0,0.001]
[1745508754137,0.1072997,93167.0,93166.0,0.1073009]
[1745508754355,0.1072997,93167.0,93166.0,0.2273009]
[1745508754830,0.1700997,93167.0,93166.0,0.12]
[1745508755142,0.1700997,93167.0,93166.0,0.292]
[1745508755340,0.1700997,93167.0,93166.0,0.293]
[1745508755341,0.6700997,93167.0,93166.0,0.293]
[1745508755532,0.6700997,93167.0,93166.0,0.273]
[1745508755727,0.6700997,93167.0,93166.0,0.3803009]
[1745508756039,0.6700997,93167.0,93166.0,0.274]
[1745508756743,0.6700997,93167.0,93166.0,0.273]
[1745508758441,0.6700997,93167.0,93166.0,0.283]
[1745508758834,0.6700997,93167.0,93166.0,0.4486009]
[1745508759139,0.5,93167.0,93166.0,0.8094009]
[1745508759343,0.6072997,93167.0,93166.0,0.8094009]
[1745508759647,0.6072997,93167.0,93166.0,0.8104009]
[1745508760140,0.1072997,93167.0,93166.0,0.8104009]
[1745508768755,0.1072959,93171.0,93167.0,0.0536496]
[1745508768951,0.0536468,93173.0,93172.0,0.107294]
[1745508769146,0.0536468,93173.0,93172.0,0.247294]
[1745508769656,0.07408,93174.0,93173.0,0.1072928]
[1745508769860,0.07408,93174.0,93173.0,0.3734928]
[1745508770351,0.07408,93174.0,93173.0,0.5454928]
[1745508770553,0.1072917,93174.0,93173.0,0.5454928]
[1745508771456,0.0536436,93178.0,93177.0,0.1072882]
[1745508771457,0.1609325,93178.0,93177.0,0.1072882]
[1745508771658,0.1609325,93178.0,93177.0,0.6280882]
[1745508772254,0.0603,93196.0,93177.0,0.6280882]
[1745508772255,0.0536313,93205.0,93204.0,0.107256]
[1745508772458,0.0011,93207.0,93206.0,0.1072548]
[1745508772757,0.1083537,93207.0,93206.0,0.2672548]
[1745508772957,0.0011,93207.0,93206.0,0.63608096]
[1745508773157,0.0011,93207.0,93206.0,1.03776896]
[1745508773550,0.0011,93207.0,93206.0,1.11184896]
[1745508773747,0.0011,93207.0,93206.0,1.12298771]
[1745508774454,0.0051,93207.0,93206.0,1.12398771]
[1745508774660,0.0011,93207.0,93206.0,1.12298771]
[1745508774959,0.0031,93207.0,93206.0,1.12398771]
[1745508775656,0.1103537,93207.0,93206.0,1.12398771]
[1745508775857,0.0061,93207.0,93206.0,1.12398771]
[1745508778857,0.1133537,93207.0,93206.0,1.12398771]
[1745508779046,0.0061,93207.0,93206.0,1.12398771]
[1745508780359,0.2144706,93227.0,93226.0,0.1072295]
[1745508780548,0.2144706,93227.0,93226.0,0.2472295]
[1745508781059,0.0536156,93227.0,93226.0,0.3073295]
[1745508782048,0.0596156,93227.0,93226.0,0.3083295]
[1745508782249,0.0596156,93227.0,93226.0,0.4803295]
[1745508782451,0.006,93227.0,93226.0,0.4803295]
[1745508782852,0.0591,93236.0,93226.0,0.480364]
[1745508783049,0.0591,93236.0,93235.0,0.4680215]
[1745508783050,0.1663203,93236.0,93235.0,0.4680215]
[1745508783263,0.0011,93237.0,93236.0,0.1072203]
[1745508783452,0.0536083,93240.0,93236.0,0.1072203]
[1745508783453,0.1072183,93238.0,93237.0,0.107218]
[1745508783653,0.1072183,93238.0,93237.0,0.247218]
[1745508783854,0.1072183,93238.0,93237.0,0.370618]
[1745508784054,0.1072062,93249.0,93246.0,0.0536043]
[1745508784260,0.1127023,93250.0,93249.0,0.1072054]
[1745508784456,0.1127023,93250.0,93249.0,0.14]
[1745508784457,0.1608088,93250.0,93249.0,0.14]
[1745508785055,0.2209088,93250.0,93249.0,0.14]
[1745508785255,0.2209088,93250.0,93249.0,0.2472054]
[1745508786255,0.2269088,93250.0,93249.0,0.2482054]
[1745508787161,0.011,93250.0,93249.0,0.2492054]
[1745508787357,0.011,93250.0,93249.0,0.3670054]
[1745508787757,0.1182042,93250.0,93249.0,0.3670054]
[1745508788169,0.1182042,93250.0,93249.0,0.4783054]
[1745508789651,0.011,93250.0,93249.0,0.4783054]
[1745508789858,0.00160973,93275.0,93249.0,0.82134]
[1745508790055,0.0566,93283.0,93268.0,0.3608]
[1745508790262,0.1071686,93281.0,93280.0,0.4679685]
[1745508790567,0.1071686,93281.0,93280.0,0.5108]
[1745508790770,0.1071686,93281.0,93280.0,0.3608]
[1745508790958,0.1071686,93281.0,93280.0,0.4908]
[1745508791564,0.1101686,93281.0,93280.0,0.6058429]
[1745508791770,0.6101686,93281.0,93280.0,0.6058429]
[1745508792261,0.6121686,93281.0,93280.0,0.6058429]
[1745508792467,0.6121686,93281.0,93280.0,0.61696805]
[1745508792666,0.6121686,93281.0,93280.0,0.73376805]
[1745508793053,0.1121686,93281.0,93280.0,0.73376805]
[1745508793460,0.1121686,93281.0,93280.0,0.67566805]
[1745508794873,0.005,93281.0,93280.0,0.67566805]
[1745508795256,0.1121686,93281.0,93280.0,0.84766805]
[1745508795463,0.1101686,93281.0,93280.0,0.84966805]
[1745508796163,0.1081686,93281.0,93280.0,0.84966805]
[1745508797275,0.1081686,93281.0,93280.0,0.84766805]
[1745508797863,0.1081686,93281.0,93280.0,0.74049825]
[1745508798064,0.1081686,93281.0,93280.0,0.84766805]
[1745508798269,0.1081686,93281.0,93280.0,0.67566805]
[1745508798968,0.2292686,93281.0,93280.0,0.67566805]
[1745508800176,0.001,93281.0,93280.0,0.67566805]
[1745508800478,0.0535792,93290.0,93289.0,0.1071583]
[1745508800666,0.0535792,93290.0,93289.0,0.6079583]
[1745508801273,0.0535792,93290.0,93289.0,0.7279583]
[1745508801668,0.1160792,93290.0,93289.0,0.5597]
[1745508801863,0.1781792,93290.0,93289.0,0.6668594]
[1745508802573,0.1801792,93290.0,93289.0,0.6668594]
[1745508804268,0.1801792,93290.0,93289.0,0.5597]
[1745508804470,0.1801792,93290.0,93289.0,0.6668594]
[1745508805185,0.0661,93290.0,93289.0,0.6668594]
[1745508805481,0.1111583,93290.0,93289.0,0.6668594]
[1745508806187,0.1111583,93290.0,93289.0,0.7251594]
[1745508806482,0.004,93290.0,93289.0,0.7251594]
[1745508806690,0.002,93290.0,93289.0,0.8991594]
[1745508806890,0.1091583,93290.0,93289.0,0.8991594]
[1745508807279,0.1071583,93290.0,93289.0,0.8991594]
[1745508807482,0.1071583,93290.0,93289.0,0.9001594]
[1745508809482,0.1071583,93290.0,93289.0,0.91557981]
[1745508809695,0.1071583,93290.0,93289.0,0.91558948]
[1745508810194,0.1607354,93292.0,93289.0,0.80843008]
[1745508810396,0.1607354,93292.0,93291.0,0.1071571]
[1745508810692,0.1607354,93292.0,93291.0,0.27258718]
[1745508811495,0.1653525,93295.0,93294.0,0.1071537]
[1745508811697,0.1653525,93295.0,93294.0,0.27258378]
[1745508811882,0.1082502,93297.0,93296.0,0.1071514]
[1745508812082,0.1082502,93297.0,93296.0,0.27258148]
[1745508812585,0.1082502,93297.0,93296.0,0.33348148]
[1745508813088,0.1092502,93297.0,93296.0,0.33348148]
[1745508813493,0.0021,93297.0,93296.0,0.33348148]
[1745508813997,0.1,93300.0,93296.0,0.33348148]
[1745508813998,0.1,93300.0,93299.0,0.1071479]
[1745508814295,0.1,93300.0,93299.0,0.64337798]
[1745508814798,0.112343,93304.0,93303.0,0.1071433]
[1745508815093,0.0052,93304.0,93303.0,0.27257338]
[1745508815286,0.1123422,93304.0,93303.0,0.27312819]
[1745508815493,0.1719422,93304.0,93303.0,0.27312819]
[1745508816197,0.1729422,93304.0,93303.0,0.27312819]
[1745508816700,0.1739422,93304.0,93303.0,0.27312819]
[1745508816994,0.1739422,93304.0,93303.0,0.2571433]
[1745508817296,0.1739422,93304.0,93303.0,0.27266352]
[1745508818095,0.0668,93304.0,93303.0,0.15266352]
[1745508818592,0.0668,93304.0,93303.0,0.1371433]
[1745508820398,0.1739422,93304.0,93303.0,0.1371433]
[1745508820695,0.1739422,93304.0,93303.0,0.35285409]
[1745508820696,0.2364422,93304.0,93303.0,0.35285409]
[1745508821787,0.2364422,93304.0,93303.0,0.21571079]
[1745508821986,0.5972422,93304.0,93303.0,0.31571079]
[1745508822182,0.4084422,93304.0,93303.0,0.31571079]
[1745508822392,0.4084422,93304.0,93303.0,0.21571079]
[1745508822592,0.4084422,93304.0,93303.0,0.31571079]
[1745508822896,0.9084422,93304.0,93303.0,0.31571079]
[1745508823193,0.6293,93304.0,93303.0,0.42285409]
[1745508823401,0.7364422,93304.0,93303.0,0.42285409]
[1745508823790,0.7364422,93304.0,93303.0,0.2071433]
[1745508824899,0.2364422,93304.0,93303.0,0.2071433]
[1745508825395,0.1293,93304.0,93303.0,0.2071433]
[1745508825997,0.0072,93304.0,93303.0,0.2671433]
[1745508827085,0.0062,93304.0,93303.0,0.2691433]
[1745508828202,0.0052,93304.0,93303.0,0.4431433]
[1745508831608,0.1123422,93304.0,93303.0,0.4431433]
[1745508831902,0.0678,93304.0,93303.0,0.4431433]
[1745508832499,0.1749422,93304.0,93303.0,0.4231433]
[1745508833307,0.1749422,93304.0,93303.0,0.2511433]
[1745508839003,0.0678,93304.0,93303.0,0.3113433]
[1745508839202,0.1749422,93304.0,93303.0,0.3702433]
[1745508839903,0.0678,93304.0,93303.0,0.3702433]
[1745508841813,0.1749422,93304.0,93303.0,0.3702433]
[1745508843109,0.1749422,93304.0,93303.0,0.2511433]
[1745508844909,0.17511808,93304.0,93303.0,0.2511433]
[1745508846300,0.17511808,93304.0,93303.0,0.1111433]
[1745508846606,0.17511808,93304.0,93285.0,0.07384]
[1745508846607,0.1071652,93284.0,93283.0,0.37792938]
[1745508846815,0.1071652,93284.0,93283.0,0.53792938]
[1745508847201,0.1071652,93284.0,93283.0,0.3207477]
[1745508847602,0.1213,93285.0,93284.0,0.1071652]
[1745508847796,0.168164,93285.0,93284.0,0.3886652]
[1745508848911,0.168164,93285.0,93284.0,0.3946652]
[1745508849113,0.169164,93285.0,93284.0,0.4016652]
[1745508849803,0.169164,93285.0,93284.0,0.3404652]
[1745508850311,0.001,93285.0,93284.0,0.6712652]
[1745508850612,0.001,93285.0,93284.0,0.75097482]
[1745508851112,0.001,93285.0,93284.0,0.92297296]
[1745508851309,0.107146,93301.0,93300.0,0.1071468]
[1745508851508,0.107146,93301.0,93300.0,0.26385456]
[1745508851904,0.107146,93301.0,93300.0,0.38695456]
[1745508852106,0.1664439,93303.0,93302.0,0.1071445]
[1745508852313,0.1071439,93303.0,93302.0,0.27385226]
[1745508853210,0.1071439,93303.0,93302.0,0.27389334]
[1745508853411,0.1071439,93303.0,93302.0,0.27589334]
[1745508854006,0.05894738,93304.0,93303.0,0.1071433]
[1745508854316,0.05894738,93304.0,93303.0,0.39209214]
[1745508855015,0.05894738,93304.0,93303.0,0.39309214]
[1745508855212,0.00537588,93304.0,93303.0,0.39309214]
[1745508855605,0.00537588,93304.0,93303.0,0.75389214]
[1745508855806,0.00537588,93304.0,93303.0,0.75589214]
[1745508856206,0.00537588,93304.0,93303.0,0.92789214]
[1745508856808,8e-08,93304.0,93303.0,1.27506814]
[1745508857010,0.36457504,93326.0,93325.0,0.1071181]
[1745508857318,0.059,93331.0,93326.0,0.1071169]
[1745508857618,0.059,93331.0,93326.0,0.32416574]
[1745508857914,0.059,93331.0,93326.0,0.38406574]
[1745508858214,0.059,93338.0,93326.0,0.38322783]
[1745508858412,0.0535522,93337.0,93326.0,0.38322783]
[1745508858611,0.1071092,93333.0,93326.0,0.38322783]
[1745508858814,0.0041,93327.0,93326.0,0.38322783]
[1745508859620,0.0061,93327.0,93326.0,0.38322783]
[1745508859814,0.0051,93327.0,93326.0,0.38322783]
[1745508860210,0.0031,93327.0,93326.0,0.39400722]
[1745508860422,0.0051,93327.0,93326.0,0.39400722]
[1745508860615,0.0051,93327.0,93326.0,0.39379669]
[1745508861212,0.0031,93327.0,93326.0,0.39370736]
[1745508861404,0.0051,93327.0,93326.0,0.37809629]
[1745508861818,0.0051,93327.0,93326.0,0.39360092]
[1745508862209,0.0051,93327.0,93326.0,0.56560092]
[1745508862612,0.1071085,93334.0,93333.0,0.1071089]
[1745508862807,0.0535537,93335.0,93334.0,0.1071078]
[1745508863009,0.0535537,93335.0,93334.0,0.3175078]
[1745508863212,0.0535537,93335.0,93334.0,0.3806078]
[1745508863518,0.0609,93336.0,93335.0,0.1071066]
[1745508863706,0.0621,93342.0,93341.0,0.1070997]
[1745508863911,0.0621,93342.0,93341.0,0.2470997]
[1745508864112,0.0621,93342.0,93341.0,0.26269558]
[1745508864312,0.1691986,93342.0,93341.0,0.26269444]
[1745508864523,0.00160859,93344.0,93340.0,0.0604]
[1745508864820,0.00160859,93344.0,93343.0,0.1070974]
[1745508865020,0.00160859,93344.0,93343.0,0.2626854]
[1745508865213,0.00160859,93344.0,93343.0,0.3828854]
[1745508865412,0.10870489,93344.0,93343.0,0.3828854]
[1745508865617,0.10970489,93344.0,93343.0,0.1526854]
[1745508865830,0.10970489,93344.0,93343.0,0.14495283]